bitfinex-derivatives/quotes_SOLF0:USTF0_20250216
["timestamp","ask_amount","ask_price","bid_price","bid_amount"]
[1739682734016,5.1387,194.57,194.56,0.03266318]
[1739682770647,0.03737414,194.59,194.56,7.32758918]
[1739682772049,0.03737414,194.59,194.56,12.46658918]
[1739682773255,5.17567414,194.59,194.56,12.46658918]
[1739682773859,5.17567414,194.59,194.56,7.32758918]
[1739682774358,0.03737414,194.59,194.56,7.32758918]
[1739682774851,0.03737414,194.59,194.56,12.46648918]
[1739682776553,5.17557414,194.59,194.56,12.46648918]
[1739682776760,7.294926,194.58,194.56,0.03266318]
[1739682777258,5.1387,194.57,194.56,0.03266318]
[1739682786666,12.433526,194.58,194.56,0.03266318]
[1739682787365,5.1386,194.58,194.56,0.03266318]
[1739682788067,0.03737414,194.59,194.56,0.03266318]
[1739682788269,0.03737414,194.59,194.56,7.32758918]
[1739682789669,0.03737414,194.59,194.57,5.1385]
[1739682790066,0.03737414,194.59,194.58,5.1385]
[1739682791267,0.03737414,194.59,194.58,12.433426]
[1739682808379,73.40755004,194.67,194.64,5.1367]
[1739682808579,7.294926,194.72,194.64,7.294926]
[1739682809272,7.294926,194.72,194.66,7.294926]
[1739682809472,0.03473012,194.71,194.67,0.03526445]
[1739682809782,0.03473012,194.71,194.68,5.1357]
[1739682811084,0.03473012,194.71,194.67,5.17136445]
[1739682812085,5.16983012,194.71,194.67,5.17136445]
[1739682815881,5.1356,194.69,194.67,0.03526445]
[1739682816586,5.1354,194.7,194.67,0.03526445]
[1739682819487,5.16973012,194.71,194.67,5.17116445]
[1739682823084,5.16973012,194.71,194.68,5.1358]
[1739682825688,5.1354,194.7,194.67,5.17126445]
[1739682826690,0.03473012,194.71,194.67,5.17126445]
[1739682826893,5.16993012,194.71,194.67,5.17126445]
[1739682828799,5.16993012,194.71,194.68,5.1358]
[1739682830596,0.03473012,194.71,194.67,0.03526445]
[1739682830895,5.1353,194.7,194.67,5.17126445]
[1739682836399,5.16983012,194.71,194.68,5.1357]
[1739682838106,5.1353,194.7,194.68,5.1357]
[1739682839707,0.03473012,194.71,194.67,0.03526445]
[1739682840406,5.16983012,194.71,194.68,5.1358]
[1739682848115,5.16983012,194.71,194.69,5.1356]
[1739682849014,0.03473012,194.71,194.69,5.1356]
[1739682855920,0.03473012,194.71,194.67,0.03526445]
[1739682856118,5.16983012,194.71,194.68,5.1356]
[1739682856821,0.03473012,194.71,194.7,7.294926]
[1739682857220,0.03473012,194.71,194.7,12.430226]
[1739682864526,0.03473012,194.71,194.69,5.1353]
[1739682880340,0.03473012,194.71,194.68,8.894626]
[1739682880638,0.03473012,194.71,194.68,12.489626]
[1739682890446,0.03473012,194.71,194.69,3.5949]
[1739682894657,0.03473012,194.71,194.68,8.894626]
[1739682894847,0.03473012,194.71,194.7,3.5947]
[1739682895450,0.03473012,194.71,194.7,10.889626]
[1739682901156,0.03473012,194.71,194.68,8.894626]
[1739682902048,0.03473012,194.71,194.68,12.489626]
[1739682902751,0.03473012,194.71,194.69,3.5949]
[1739682903055,0.03473012,194.71,194.7,3.5947]
[1739682903253,0.03473012,194.71,194.7,10.889626]
[1739682903452,68.23282615,194.77,194.7,7.294926]
[1739682903655,68.23282615,194.77,194.72,7.294926]
[1739682904553,68.23282615,194.77,194.73,0.03342928]
[1739682905254,10.887826,194.8,194.75,3.5938]
[1739682909055,3.5927,194.81,194.76,3.5935]
[1739682909459,3.5927,194.81,194.77,0.03587541]
[1739682909852,3.5927,194.81,194.77,3.62927541]
[1739682910660,3.5927,194.81,194.77,0.03587541]
[1739682912262,3.5929,194.8,194.77,0.03587541]
[1739682917667,7.294926,194.82,194.77,0.03587541]
[1739682917862,116.863,194.87,194.77,0.03587541]
[1739682917863,7.294926,194.8,194.77,0.03587541]
[1739682918872,3.5932,194.79,194.77,0.03587541]
[1739682919067,7.294926,194.8,194.77,0.03587541]
[1739682919869,3.5932,194.78,194.77,0.03587541]
[1739682920968,10.888126,194.78,194.77,0.03587541]
[1739682927079,3.5943,194.72,194.71,66.12244641]
[1739682927379,7.294926,194.76,194.71,66.12244641]
[1739682928080,7.294926,194.76,194.72,0.03455321]
[1739682928275,0.03290837,194.75,194.72,0.03455321]
[1739682928781,3.5942,194.73,194.72,0.03455321]
[1739682946501,3.594,194.74,194.72,0.03455321]
[1739682958414,0.03290837,194.75,194.72,7.32947921]
[1739682960217,0.03290837,194.75,194.73,3.5941]
[1739682960412,0.03290837,194.75,194.72,7.32947921]
[1739682962019,0.03290837,194.75,194.72,10.92367921]
[1739682962615,0.03290837,194.75,194.72,7.32947921]
[1739682962820,0.03290837,194.75,194.74,7.294926]
[1739682965018,0.03290837,194.75,194.74,10.888926]
[1739682976018,0.03290837,194.75,194.74,12.553326]
[1739682977226,0.03290837,194.75,194.74,8.959326]
[1739682977425,0.03290837,194.75,194.74,7.294926]
[1739682978326,0.03290837,194.75,194.74,10.888926]
[1739682979530,0.03290837,194.75,194.74,7.294926]
[1739682981029,0.03290837,194.75,194.74,10.888926]
[1739682984227,0.03290837,194.75,194.74,7.294926]
[1739682986129,0.03290837,194.75,194.72,10.92377921]
[1739682986339,0.03290837,194.75,194.72,7.32947921]
[1739682986539,0.03290837,194.75,194.72,0.03455321]
[1739682987038,3.62670837,194.75,194.72,0.03455321]
[1739682987339,0.03290837,194.75,194.72,0.03455321]
[1739682988134,3.62670837,194.75,194.72,0.03455321]
[1739682988541,0.03290837,194.75,194.72,0.03455321]
[1739682988941,7.294926,194.74,194.72,0.03455321]
[1739682989742,3.5941,194.73,194.72,0.03455321]
[1739682991036,7.294926,194.74,194.72,0.03455321]
[1739682991037,3.62670837,194.75,194.72,0.03455321]
[1739682992041,3.594,194.74,194.72,0.03455321]
[1739682993037,0.03290837,194.75,194.72,0.03455321]
[1739682993242,3.5941,194.73,194.72,0.03455321]
[1739683006247,0.03290837,194.75,194.72,0.03455321]
[1739683006548,3.62680837,194.75,194.72,0.03455321]
[1739683009854,0.03290837,194.75,194.72,0.03455321]
[1739683010054,3.594,194.74,194.72,0.03455321]
[1739683013352,3.5941,194.73,194.72,0.03455321]
[1739683020665,3.5941,194.73,194.72,5.321e-05]
[1739683027073,3.5956,194.65,194.62,7.294926]
[1739683027275,7.294926,194.68,194.62,7.294926]
[1739683028164,7.294926,194.66,194.63,0.03273564]
[1739683029064,3.5959,194.64,194.63,0.03273564]
[1739683029968,10.890826,194.64,194.63,0.03273564]
[1739683039582,10.890826,194.64,194.63,3.564e-05]
[1739683039973,7.294926,194.64,194.55,8.1964]
[1739683040174,10.891726,194.59,194.55,8.1964]
[1739683040874,7.294926,194.59,194.55,3.0416]
[1739683041079,10.892026,194.57,194.52,7.294926]
[1739683041278,7.294926,194.57,194.55,0.03487544]
[1739683041478,3.5973,194.56,194.55,0.03487544]
[1739683045787,7.294926,194.57,194.55,0.03487544]
[1739683045988,10.892026,194.57,194.55,0.03487544]
[1739683046287,7.294926,194.57,194.55,0.03487544]
[1739683047382,7.294926,194.57,194.55,3.63227544]
[1739683049986,7.294926,194.57,194.55,0.03487544]
[1739683053589,7.33362208,194.59,194.55,0.03487544]
[1739683055187,7.33362208,194.59,194.56,3.5973]
[1739683056193,7.33362208,194.59,194.55,3.63227544]
[1739683059591,10.93042208,194.59,194.55,3.63227544]
[1739683066295,3.597,194.58,194.55,0.03487544]
[1739683066803,7.33362208,194.59,194.55,0.03487544]
[1739683068295,3.597,194.58,194.55,0.03487544]
[1739683076702,7.33362208,194.59,194.55,0.03487544]
[1739683076903,3.5971,194.57,194.55,0.03487544]
[1739683078811,3.597,194.58,194.55,0.03487544]
[1739683083011,10.93042208,194.59,194.55,3.63237544]
[1739683083813,3.5969,194.58,194.55,3.63237544]
[1739683088721,3.5972,194.57,194.55,0.03487544]
[1739683089315,7.33362208,194.59,194.55,0.03487544]
[1739683089512,3.5973,194.56,194.55,0.03487544]
[1739683090214,3.5972,194.57,194.55,0.03487544]
[1739683100727,3.5973,194.56,194.55,0.03487544]
[1739683103028,3.598,194.53,194.47,3.5988]
[1739683103223,7.294926,194.52,194.46,35.97387333]
[1739683103430,7.294926,194.54,194.48,7.294926]
[1739683104132,0.03570323,194.53,194.49,0.03306279]
[1739683105035,0.03570323,194.53,194.49,3.63166279]
[1739683107034,3.63350323,194.53,194.49,3.63166279]
[1739683110534,7.294926,194.5,194.41,28.67894733]
[1739683110743,7.294926,194.42,194.41,28.67894733]
[1739683110937,7.294926,194.42,194.4,28.67894733]
[1739683111244,10.894826,194.42,194.4,28.67894733]
[1739683113436,0.03530061,194.43,194.4,28.67894733]
[1739683114247,0.03530061,194.43,194.39,0.03536574]
[1739683115643,3.63510061,194.43,194.39,0.03536574]
[1739683118541,0.03530061,194.43,194.39,0.03536574]
[1739683118738,3.5999,194.42,194.39,0.03536574]
[1739683119141,10.894826,194.42,194.39,0.03536574]
[1739683123241,3.6002,194.41,194.39,0.03536574]
[1739683127650,3.6002,194.4,194.39,0.03536574]
[1739683128148,7.294926,194.42,194.39,0.03536574]
[1739683128550,3.6002,194.41,194.39,0.03536574]
[1739683130648,7.294926,194.42,194.39,0.03536574]
[1739683130854,3.6002,194.4,194.39,0.03536574]
[1739683135257,10.895126,194.4,194.39,0.03536574]
[1739683148064,7.294926,194.4,194.39,0.03536574]
[1739683149165,0.03530061,194.43,194.39,7.33029174]
[1739683149367,0.03530061,194.43,194.41,7.294926]
[1739683150062,0.03530061,194.43,194.42,3.5999]
[1739683160173,7.33022661,194.43,194.39,0.03536574]
[1739683162078,7.33022661,194.43,194.39,3.63576574]
[1739683162572,7.33022661,194.43,194.41,3.5999]
[1739683162773,0.03530061,194.43,194.39,0.03536574]
[1739683163073,0.03530061,194.43,194.41,7.294926]
[1739683164179,0.03530061,194.43,194.42,3.5999]
[1739683164470,7.294926,194.49,194.41,7.294926]
[1739683164675,7.294926,194.49,194.46,3.5991]
[1739683165779,7.33391218,194.49,194.46,3.63556391]
[1739683167178,7.33391218,194.49,194.46,0.03646391]
[1739683168175,10.93251218,194.49,194.46,0.03646391]
[1739683168877,7.33391218,194.49,194.46,0.03646391]
[1739683169177,7.294926,194.47,194.46,0.03646391]
[1739683175785,10.893826,194.47,194.46,0.03646391]
[1739683181394,3.5998,194.43,194.39,3.6004]
[1739683181591,10.894726,194.43,194.39,3.6004]
[1739683182482,10.93027772,194.43,194.39,3.63370548]
[1739683182692,7.33047772,194.43,194.39,3.63370548]
[1739683183085,7.33047772,194.43,194.4,3.6002]
[1739683184094,7.33047772,194.43,194.41,3.6]
[1739683186889,0.03555172,194.43,194.41,3.6]
[1739683199303,0.03555172,194.43,194.42,3.5999]
[1739683211209,7.294926,194.49,194.45,3.5992]
[1739683212209,7.32869447,194.49,194.45,3.63838556]
[1739683213613,7.32869447,194.49,194.45,0.03918556]
[1739683213908,7.32869447,194.49,194.46,3.5991]
[1739683223315,7.32869447,194.49,194.45,3.63848556]
[1739683227316,7.32869447,194.49,194.45,0.03918556]
[1739683227517,3.5988,194.48,194.45,0.03918556]
[1739683227718,7.32869447,194.49,194.45,0.03918556]
[1739683229020,10.92739447,194.49,194.45,3.63848556]
[1739683233025,7.32869447,194.49,194.45,3.63848556]
[1739683233523,7.32869447,194.49,194.45,0.03918556]
[1739683233723,7.294926,194.47,194.45,0.03918556]
[1739683235028,10.894026,194.47,194.45,0.03918556]
[1739683239029,7.294926,194.47,194.45,0.03918556]
[1739683256346,7.32869447,194.49,194.45,0.03918556]
[1739683257148,7.32869447,194.49,194.47,3.5989]
[1739683257746,7.32869447,194.49,194.46,3.5991]
[1739683259549,7.32869447,194.49,194.45,0.03918556]
[1739683259749,10.92729447,194.49,194.45,3.63848556]
[1739683268155,7.32869447,194.49,194.45,0.03918556]
[1739683270057,7.32869447,194.49,194.46,3.5991]
[1739683272152,7.32869447,194.49,194.45,0.03918556]
[1739683272348,0.03376847,194.49,194.45,7.33411156]
[1739683272759,0.03376847,194.49,194.48,3.5988]
[1739683284268,41.20068801,194.57,194.47,8.812826]
[1739683284462,7.294926,194.59,194.52,7.294926]
[1739683285071,7.294926,194.59,194.54,3.5976]
[1739683285472,0.03712768,194.58,194.55,0.03845765]
[1739683286566,0.03712768,194.58,194.56,7.294926]
[1739683287971,0.03712768,194.58,194.57,3.5971]
[1739683291879,0.03712768,194.58,194.56,7.294926]
[1739683292075,0.03712768,194.58,194.55,3.63575765]
[1739683292269,0.03712768,194.58,194.55,0.03845765]
[1739683294075,0.03712768,194.58,194.55,3.63595765]
[1739683295975,0.03712768,194.58,194.55,0.03845765]
[1739683296176,0.03712768,194.58,194.56,3.5972]
[1739683307683,0.03712768,194.58,194.57,3.5971]
[1739683321594,0.03712768,194.58,194.56,7.294926]
[1739683321794,0.03712768,194.58,194.55,3.63595765]
[1739683322700,0.03712768,194.58,194.55,0.03845765]
[1739683324097,0.03712768,194.58,194.56,3.5971]
[1739683324504,0.03712768,194.58,194.57,3.5971]
[1739683325105,10.890726,194.65,194.6,3.5965]
[1739683325407,7.294926,194.65,194.59,7.294926]
[1739683326405,0.03336331,194.64,194.6,0.0350907]
[1739683327105,0.03336331,194.64,194.61,3.5963]
[1739683328607,0.03336331,194.64,194.6,0.0350907]
[1739683328907,0.03336331,194.64,194.6,3.6315907]
[1739683334010,0.03336331,194.64,194.6,0.0350907]
[1739683334306,0.03336331,194.64,194.61,3.5964]
[1739683335210,0.03336331,194.64,194.63,3.596]
[1739683336309,0.03336331,194.64,194.63,10.890926]
[1739683337708,7.294926,194.69,194.63,7.294926]
[1739683338211,7.294926,194.71,194.66,3.5953]
[1739683338410,7.294926,194.71,194.65,7.294926]
[1739683338812,0.03807002,194.7,194.66,0.03523644]
[1739683339312,0.03807002,194.7,194.67,3.5952]
[1739683339713,0.03807002,194.7,194.66,0.03523644]
[1739683339909,0.03807002,194.7,194.67,7.294926]
[1739683340113,0.03807002,194.7,194.68,3.5949]
[1739683342907,0.03807002,194.7,194.69,10.889826]
[1739683344410,0.03807002,194.7,194.69,7.294926]
[1739683346619,0.03807002,194.7,194.69,10.889826]
[1739683357815,7.294926,194.77,194.69,7.294926]
[1739683358016,7.294926,194.77,194.72,3.5943]
[1739683358926,7.294926,194.77,194.71,7.294926]
[1739683359221,7.294926,194.77,194.73,0.03286295]
[1739683361122,3.5937,194.76,194.73,0.03286295]
[1739683363129,3.5938,194.75,194.73,0.03286295]
[1739683365334,3.594,194.74,194.73,0.03286295]
[1739683367833,7.294926,194.75,194.73,0.03286295]
[1739683368431,10.888826,194.75,194.73,0.03286295]
[1739683369738,3.594,194.74,194.73,0.03286295]
[1739683371138,7.294926,194.75,194.73,0.03286295]
[1739683371339,10.888726,194.75,194.73,0.03286295]
[1739683373738,3.5938,194.75,194.73,0.03286295]
[1739683374042,3.5937,194.76,194.73,0.03286295]
[1739683375839,10.888326,194.77,194.73,0.03286295]
[1739683378345,3.5936,194.76,194.73,0.03286295]
[1739683378545,7.294926,194.77,194.73,0.03286295]
[1739683379545,10.888326,194.77,194.73,3.62696295]
[1739683380746,3.5936,194.76,194.73,0.03286295]
[1739683384446,10.888326,194.77,194.73,0.03286295]
[1739683385245,7.294926,194.77,194.73,3.62696295]
[1739683387349,7.294926,194.77,194.73,0.03286295]
[1739683387648,7.294926,194.77,194.74,3.594]
[1739683388043,7.294926,194.77,194.73,0.03286295]
[1739683388248,7.294926,194.77,194.73,3.62686295]
[1739683388451,7.294926,194.77,194.73,0.03286295]
[1739683389652,7.294926,194.79,194.73,7.32778895]
[1739683390151,8.857826,194.81,194.75,7.294926]
[1739683390352,3.5929,194.8,194.76,3.5935]
[1739683390552,8.857826,194.81,194.75,7.294926]
[1739683390954,8.857826,194.81,194.77,3.5933]
[1739683391347,8.857826,194.81,194.77,3.63118557]
[1739683391846,12.450526,194.81,194.77,3.63118557]
[1739683393246,3.5929,194.8,194.77,0.03788557]
[1739683398967,8.857826,194.81,194.77,0.03788557]
[1739683400261,3.5932,194.78,194.77,0.03788557]
[1739683404061,8.857826,194.81,194.77,0.03788557]
[1739683404266,3.5929,194.8,194.77,0.03788557]
[1739683405267,3.5931,194.79,194.77,0.03788557]
[1739683405768,8.857826,194.81,194.77,0.03788557]
[1739683405969,3.5932,194.78,194.77,0.03788557]
[1739683410265,7.294926,194.79,194.71,7.294926]
[1739683410465,3.5938,194.75,194.71,10.889426]
[1739683411068,7.294926,194.77,194.71,7.294926]
[1739683411263,3.5936,194.76,194.72,3.5943]
[1739683411471,3.63024116,194.76,194.72,3.63261604]
[1739683413272,3.63024116,194.76,194.72,0.03831604]
[1739683417769,3.63024116,194.76,194.72,3.63261604]
[1739683418774,3.63024116,194.76,194.72,0.03831604]
[1739683419275,3.594,194.74,194.72,0.03831604]
[1739683420175,0.03664116,194.76,194.72,0.03831604]
[1739683420374,3.5938,194.75,194.72,0.03831604]
[1739683424277,3.594,194.74,194.72,0.03831604]
[1739683425575,3.5941,194.73,194.72,0.03831604]
[1739683427080,10.889026,194.73,194.72,0.03831604]
[1739683427377,7.294926,194.73,194.65,7.294926]
[1739683427570,3.5948,194.7,194.65,7.294926]
[1739683428372,7.294926,194.73,194.67,7.294926]
[1739683428576,0.03277712,194.68,194.67,7.294926]
[1739683428772,3.5945,194.72,194.67,7.294926]
[1739683429081,0.0380527,194.69,194.67,7.294926]
[1739683432577,0.0380527,194.69,194.68,3.5951]
[1739683434182,0.0380527,194.69,194.67,10.890126]
[1739683435781,0.0380527,194.69,194.68,3.5951]
[1739683436182,0.0380527,194.69,194.68,6.7964]
[1739683444090,38.24691463,194.77,194.71,3.5944]
[1739683444292,38.24691463,194.77,194.72,7.294926]
[1739683445289,0.03383806,194.76,194.73,0.03768071]
[1739683448889,3.62743806,194.76,194.73,0.03768071]
[1739683449387,0.03383806,194.76,194.74,7.294926]
[1739683450786,0.03383806,194.76,194.75,3.5938]
[1739683454799,7.294926,194.83,194.74,7.294926]
[1739683454997,3.5927,194.81,194.78,7.294926]
[1739683455899,3.5927,194.81,194.78,7.33156001]
[1739683456300,7.294926,194.85,194.78,7.33156001]
[1739683456502,3.593,194.8,194.78,0.03663401]
[1739683456800,3.593,194.8,194.76,7.294926]
[1739683456992,3.5927,194.81,194.77,0.03921357]
[1739683458400,3.5929,194.8,194.77,0.03921357]
[1739683458799,7.294926,194.83,194.77,3.63251357]
[1739683459000,10.887426,194.83,194.77,3.63251357]
[1739683459200,7.294926,194.83,194.78,7.294926]
[1739683459801,3.5927,194.82,194.78,7.294926]
[1739683460696,3.593,194.8,194.78,7.294926]
[1739683460901,3.593,194.8,194.77,0.03921357]
[1739683467602,3.593,194.8,194.77,3.63261357]
[1739683468103,3.5927,194.81,194.77,3.63261357]
[1739683468802,7.294926,194.83,194.77,0.03921357]
[1739683469009,3.5929,194.8,194.77,0.03921357]
[1739683469712,7.294926,194.83,194.77,0.03921357]
[1739683470009,3.5931,194.79,194.77,0.03921357]
[1739683478017,7.294926,194.83,194.77,0.03921357]
[1739683479521,3.5932,194.79,194.77,0.03921357]
[1739683497840,3.5929,194.8,194.77,0.03921357]
[1739683499639,7.294926,194.83,194.77,0.03921357]
[1739683501042,3.5929,194.8,194.77,0.03921357]
[1739683501339,7.294926,194.83,194.77,0.03921357]
[1739683502043,3.5931,194.79,194.77,0.03921357]
[1739683503545,7.294926,194.85,194.77,0.03921357]
[1739683503745,3.5929,194.8,194.77,0.03921357]
[1739683505847,7.294926,194.85,194.77,0.03921357]
[1739683506044,3.593,194.79,194.77,0.03921357]
[1739683507049,7.294926,194.83,194.77,0.03921357]
[1739683507350,7.294926,194.83,194.76,7.294926]
[1739683507648,3.593,194.79,194.78,0.03609148]
[1739683510051,3.5929,194.8,194.78,7.33101748]
[1739683511144,7.294926,194.85,194.78,7.33101748]
[1739683513054,3.5926,194.82,194.78,7.33101748]
[1739683514047,3.5927,194.81,194.78,7.33101748]
[1739683516357,3.5929,194.8,194.78,7.33101748]
[1739683517854,13.19277338,194.88,194.78,0.03609148]
[1739683517855,3.593,194.79,194.78,0.03609148]
[1739683521658,3.5929,194.8,194.78,0.03609148]
[1739683526661,3.593,194.79,194.78,0.03609148]
[1739683532162,7.294926,194.87,194.78,7.33101748]
[1739683532363,7.294926,194.87,194.81,7.294926]
[1739683532763,7.294926,194.87,194.82,0.03583854]
[1739683533162,3.5918,194.86,194.82,3.62833854]
[1739683533359,200.294926,194.89,194.83,7.294926]
[1739683533559,3.5917,194.87,194.83,7.294926]
[1739683536057,200.294926,194.89,194.83,7.294926]
[1739683536862,7.294926,194.89,194.83,7.294926]
[1739683537063,3.5918,194.86,194.83,7.294926]
[1739683537264,7.294926,194.89,194.83,7.294926]
[1739683538063,3.592,194.85,194.83,7.294926]
[1739683539464,3.5918,194.86,194.83,7.294926]
[1739683540461,7.294926,194.89,194.83,7.294926]
[1739683541260,3.5918,194.86,194.83,7.294926]
[1739683549373,3.592,194.85,194.83,7.294926]
[1739683551177,7.294926,194.89,194.83,7.294926]
[1739683551379,3.5918,194.86,194.83,7.294926]
[1739683553279,3.5915,194.88,194.84,3.5921]
[1739683553480,3.5915,194.88,194.85,7.294926]
[1739683555377,1.611,194.92,194.87,7.294926]
[1739683555877,3.591,194.91,194.87,7.294926]
[1739683556183,7.294926,194.95,194.87,7.294926]
[1739683556384,7.294926,194.95,194.89,7.294926]
[1739683557283,3.5906,194.93,194.89,7.294926]
[1739683558785,7.294926,194.95,194.89,7.294926]
[1739683561085,3.5909,194.91,194.89,7.294926]
[1739683563387,3.5913,194.89,194.87,7.32971742]
[1739683566588,3.591,194.9,194.87,7.32971742]
[1739683567488,3.5913,194.89,194.87,7.32971742]
[1739683568690,3.591,194.91,194.87,7.32971742]
[1739683568885,7.294926,194.93,194.87,7.32971742]
[1739683569587,3.5911,194.9,194.87,7.32971742]
[1739683571192,3.5912,194.89,194.87,7.32971742]
[1739683572593,3.5911,194.9,194.87,7.32971742]
[1739683572991,7.294926,194.93,194.87,7.32971742]
[1739683574192,3.5912,194.89,194.87,7.32971742]
[1739683575694,3.591,194.9,194.87,7.32971742]
[1739683585305,7.294926,194.93,194.87,7.32971742]
[1739683585609,3.5909,194.91,194.87,7.32971742]
[1739683585902,3.5909,194.91,194.87,10.92131742]
[1739683588703,7.294926,194.93,194.87,7.32971742]
[1739683589403,3.591,194.91,194.87,7.32971742]
[1739683590001,7.294926,194.93,194.87,7.32971742]
[1739683590304,3.5911,194.9,194.87,7.32971742]
[1739683604412,7.294926,194.93,194.87,7.32971742]
[1739683604605,3.5909,194.91,194.87,10.92131742]
[1739683604805,7.294926,194.95,194.87,7.32971742]
[1739683605311,7.294926,194.95,194.89,7.294926]
[1739683605517,43.6553793,194.97,194.89,7.294926]
[1739683605814,43.6553793,194.97,194.91,0.03714747]
[1739683606010,3.5906,194.93,194.91,0.03714747]
[1739683607113,20.49338791,194.99,194.91,7.33207347]
[1739683607314,3.5899,194.97,194.93,7.294926]
[1739683608110,7.294926,194.99,194.93,7.294926]
[1739683608306,3.5899,194.96,194.93,7.294926]
[1739683609312,7.294926,194.99,194.93,7.294926]
[1739683609513,3.5902,194.95,194.93,7.294926]
[1739683611916,7.294926,194.99,194.93,7.294926]
[1739683612516,3.5903,194.94,194.91,7.33207347]
[1739683618826,3.5906,194.92,194.91,0.03714747]
[1739683628334,3.5906,194.92,194.91,4.747e-05]
[1739683635945,3.5923,194.84,194.79,40.99138251]
[1739683636245,7.294926,194.86,194.79,40.99138251]
[1739683636440,3.5921,194.84,194.79,7.294926]
[1739683636644,7.294926,194.84,194.79,7.294926]
[1739683637039,3.5927,194.82,194.8,0.03874693]
[1739683637749,3.5927,194.81,194.8,0.03874693]
[1739683637942,0.03728502,194.83,194.8,0.03874693]
[1739683638546,3.5925,194.82,194.8,0.03874693]
[1739683638742,0.03728502,194.83,194.8,0.03874693]
[1739683639548,3.62958502,194.83,194.8,0.03874693]
[1739683650452,3.5927,194.81,194.8,0.03874693]
[1739683677083,3.5927,194.81,194.8,4.693e-05]
[1739683680684,3.5939,194.75,194.7,3.5947]
[1739683680983,7.294926,194.76,194.69,7.294926]
[1739683681685,0.03865426,194.74,194.71,0.03458062]
[1739683682082,3.5943,194.73,194.71,0.03458062]
[1739683682277,0.03865426,194.74,194.71,0.03458062]
[1739683690588,0.03865426,194.74,194.71,3.62908062]
[1739683695495,0.03865426,194.74,194.71,0.03458062]
[1739683695693,3.63275426,194.74,194.71,0.03458062]
[1739683695894,7.33358026,194.74,194.71,0.03458062]
[1739683696198,3.5943,194.73,194.71,0.03458062]
[1739683696398,0.03865426,194.74,194.71,0.03458062]
[1739683696889,3.63275426,194.74,194.71,0.03458062]
[1739683703006,0.03865426,194.74,194.71,0.03458062]
[1739683703206,3.5942,194.73,194.71,0.03458062]
[1739683707111,3.5943,194.72,194.71,0.03458062]
[1739683707910,3.63265426,194.74,194.71,0.03458062]
[1739683708111,0.03865426,194.74,194.71,0.03458062]
[1739683708908,3.63265426,194.74,194.71,0.03458062]
[1739683709407,0.03865426,194.74,194.71,7.32950662]
[1739683709613,7.294926,194.78,194.71,7.32950662]
[1739683710713,0.03495887,194.76,194.71,7.32950662]
[1739683712014,3.62855887,194.76,194.71,10.92400662]
[1739683714317,3.5939,194.75,194.71,10.92400662]
[1739683714711,0.03495887,194.76,194.72,3.5943]
[1739683715007,0.03495887,194.76,194.71,7.32950662]
[1739683716119,3.62855887,194.76,194.72,3.5943]
[1739683732227,3.62855887,194.76,194.73,3.5941]
[1739683736627,3.62855887,194.76,194.71,10.92390662]
[1739683736834,3.5938,194.75,194.71,3.62898062]
[1739683737431,7.32988487,194.76,194.71,0.03458062]
[1739683738434,7.294926,194.74,194.71,0.03458062]
[1739683738933,3.5941,194.73,194.71,0.03458062]
[1739683741336,10.888926,194.74,194.71,0.03458062]
[1739683742637,3.5942,194.73,194.71,0.03458062]
[1739683747745,10.888926,194.74,194.71,0.03458062]
[1739683749752,0.03495887,194.76,194.71,7.32950662]
[1739683750041,0.03495887,194.76,194.73,7.294926]
[1739683751049,0.03495887,194.76,194.74,3.5939]
[1739683751549,0.03495887,194.76,194.75,3.5938]
[1739683751745,0.03495887,194.76,194.75,10.888726]
[1739683752150,200.294926,194.82,194.77,3.5933]
[1739683752348,7.294926,194.82,194.77,10.888226]
[1739683752752,3.5923,194.83,194.77,10.888226]
[1739683753245,3.5923,194.83,194.78,0.03773027]
[1739683754748,3.5925,194.82,194.78,0.03773027]
[1739683760851,10.887426,194.82,194.78,0.03773027]
[1739683762150,10.887426,194.82,194.78,3.63093027]
[1739683762348,4.7175,194.88,194.78,3.63093027]
[1739683762349,3.5923,194.83,194.78,0.03773027]
[1739683764053,3.5923,194.83,194.79,3.593]
[1739683765651,10.887126,194.84,194.79,3.593]
[1739683765956,7.294926,194.86,194.79,7.294926]
[1739683766153,7.294926,194.86,194.81,7.294926]
[1739683767058,10.886726,194.86,194.82,3.5925]
[1739683767252,10.886726,194.86,194.81,7.294926]